[Event "American Cup Blitz 2024"]
[Site "Saint Louis"]
[Date "2024.03.21"]
[Round "2.9"]
[White "Hong, Andrew"]
[Black "Oparin, Grigoriy"]
[Result "1/2-1/2"]
[ECO "B67"]
[WhiteElo "2542"]
[BlackElo "2671"]
[Annotator "TA"]
[PlyCount "228"]
[EventDate "2024.03.21"]
[EventType "swiss"]
[EventCountry "USA"]
[SourceTitle "playchess.com"]
[Source "ChessBase"]
[SourceQuality "1"]
[TimeControl "180+2"]

{[%evp 20,228,52,47,37,27,34,29,28,29,0,15,25,14,14,0,0,0,0,0,-1,-4,0,-9,0,0,0,0,0,0,0,0,24,0,7,14,19,13,8,0,0,0,0,0,21,17,112,114,93,85,103,0,0,-14,-14,-14,-12,-34,0,-14,0,-267,-50,-35,-57,-58,-24,-25,-27,-29,-27,-45,-43,-52,-52,-51,-54,-70,-70,-143,-150,-143,-123,-122,-127,-686,-686,-686,-645,-623,-196,-775,-775,-775,-775,-6880,-6567,-5411,-682,-656,-197,-656,-641,-551,-407,-636,-627,-344,-344,-1030,-1030,-867,-206,-304,-205,-29973,-70,-70,-70,-85,-70,-70,-70,-160,-10,-70,-70,-70,-70,-70,-70,-70,-70,-70,-70,-70,-70,-70,-70,-70,-70,-70,-70,-70,-70,-70,-70,-70,-70,-70,-70,-70,-70,-70,-70,-70,-70,-70,-70,-70,-70,-69,-63,-62,-62,-70,-70,-70,0,-70,-70,-70,-70,-69,-69,-63,-63,-62,-48,-48,-48,-49,-8,-8,-8,-8,-8,-8,-8,-8,0,0,0,0,0,0,0,0,0,0,0,0,0,0,0,0,0,0,0,-8,-8]} 1. e4 {[%emt 0:00:02]} c5 {[%emt 0:00:01]} 2. Nc3 {[%emt 0:00:02]} Nc6 {[%emt 0:00:01]} 3. Nf3 {[%emt 0:00:02]} d6 {[%emt 0:00:03]} 4. d4 {[%emt 0:00:02]} cxd4 {[%emt 0:00:01]} 5. Nxd4 {[%emt 0:00:01]} Nf6 {[%emt 0:00:02]} 6. Bg5 {[%emt 0:00:04]} e6 {[%emt 0:00:01]} 7. Qd2 {[%emt 0:00:02]} a6 {[%emt 0:00:01]} 8. O-O-O {[%emt 0:00:04]} Bd7 {[%emt 0:00:01]} 9. f4 {[%emt 0:00:10]} h6 {[%emt 0:00:02]} 10. Bh4 {[%emt 0:00:02]} Be7 {[%emt 0:00:01]} 11. Nf3 {[%emt 0:00:24]} Qc7 {[%emt 0:00:02]} 12. Kb1 {[%emt 0:00:10]} b5 {[%emt 0:00:02]} 13. Bxf6 {[%emt 0:00:07]} Bxf6 {[%emt 0:00:06] Weiß hat minimalen Vorteil.} 14. Qxd6 {[%emt 0:00:10]} Qxd6 {[%emt 0:00:02]} 15. Rxd6 {[%emt 0:00:01]} Bxc3 {[%emt 0:00:23]} 16. bxc3 {[%emt 0:00:02]} Ke7 {[%emt 0:00:01]} 17. Rd2 {[%emt 0:00:17]} Rhc8 {[%emt 0:00:05]} 18. Be2 {[%emt 0:00:03]} Na5 {[%emt 0:00:10][%cal Bc6a5,Ba5b7,Bb7c5,Bc5a4,Ba4c3][%mdl 32]} 19. Rhd1 {[%emt 0:00:12]} Be8 {[%emt 0:00:01]} 20. Kb2 {[%emt 0:00:06]} Nb7 {[%emt 0:00:02]} 21. c4 {[%emt 0:00:13]} Nc5 {[%emt 0:00:11]} 22. Rd4 {[%emt 0:00:09]} Na4+ {[%emt 0:00:17]} 23. Ka1 {[%emt 0:00:35]} Nc3 {[%emt 0:00:07]} 24. Re1 {[%emt 0:00:01]} Rab8 {[%emt 0:00:21]} 25. Bd3 {[%emt 0:00:07][%cal Be2d3,Bd3e4,Be4c6,Bc6f3][%mdl 32]} a5 {[%emt 0:00:36]} 26. Nd2 {[%emt 0:00:10]} b4 {[%emt 0:00:40]} 27. e5 {[%emt 0:00:01]} Bc6 {[%emt 0:00:05]} 28. Be4 {[%emt 0:00:12]} Rd8 {[%emt 0:00:04]} 29. Rxd8 {[%emt 0:00:19]} Rxd8 {[%emt 0:00:02]} 30. Bxc6 {[%emt 0:00:00]} Rxd2 $11 {[%emt 0:00:01][%mdl 4096] Endspiel. KRB-KRN} 31. Kb2 {[%emt 0:00:01]} Kd8 {[%emt 0:00:24]} 32. a3 {[%emt 0:00:01]} Kc7 {[%emt 0:00:01]} (32... Ne2 $1 $11 {hält das Gleichgewicht.}) 33. axb4 $16 {[%emt 0:00:01]} axb4 {[%emt 0:00:02]} 34. Bf3 {[%emt 0:00:05] Droht Kb3 und aus.} Kb6 {[%emt 0:00:01]} 35. Ra1 {[%emt 0:00:03]} (35. Kb3 $16 Kc5 36. h3) 35... Ne2 $1 $11 {[%emt 0:00:05]} 36. c5+ {[%emt 0:00:08]} Kxc5 {[%emt 0:00:02]} 37. Ra7 {[%emt 0:00:01]} Nxf4 {[%emt 0:00:03]} 38. Rxf7 {[%emt 0:00:03]} g5 {[%emt 0:00:01] Droht stark ...Nd3+.} 39. Kb3 {[%emt 0:00:02]} Nxg2 {[%emt 0:00:02]} 40. Rf6 $2 {[%emt 0:00:02][%mdl 8192]} (40. Rc7+ $11 Kb5 41. Rb7+ (41. c4+ bxc3 42. Kxc3 Rf2 $11) 41... Ka5 (41... Kc5 42. Rc7+ Kb6 43. Rc6+ Kb5 44. Rc4 $14) 42. c3) 40... Nf4 $2 {[%emt 0:00:02]} (40... Ne1 $19 41. Be4 Re2 (41... Rxh2 42. Rxe6 Rh3+ 43. Kb2 $17)) 41. Rxh6 $15 {[%emt 0:00:01]} Rf2 {[%emt 0:00:01]} 42. Bg4 {[%emt 0:00:01]} Kd5 {[%emt 0:00:01]} 43. h4 {[%emt 0:00:04]} gxh4 {[%emt 0:00:02]} 44. Rxh4 {[%emt 0:00:01]} Kxe5 {[%emt 0:00:04]} 45. Rh1 {[%emt 0:00:01]} Rg2 {[%emt 0:00:03]} 46. Re1+ {[%emt 0:00:01]} Kd6 {[%emt 0:00:01]} 47. Bd1 {[%emt 0:00:05]} Nd5 {[%emt 0:00:02]} 48. Kb2 {[%emt 0:00:01]} Rg3 {[%emt 0:00:01]} 49. Re4 {[%emt 0:00:03]} (49. Bh5 $15) 49... Nc3 $17 {[%emt 0:00:03]} 50. Re1 {[%emt 0:00:01]} e5 {[%emt 0:00:01]} 51. Bh5 {[%emt 0:00:03]} e4 {[%emt 0:00:01]} 52. Kb3 $2 {[%emt 0:00:02][%mdl 8192]} (52. Ra1 $17) 52... Kc5 $1 $19 {[%emt 0:00:01]} 53. Kb2 {[%emt 0:00:02]} e3 {[%emt 0:00:02]} 54. Kc1 {[%emt 0:00:03]} Kd4 $2 {[%emt 0:00:01]} (54... Kc4 {Zielt auf ...Kd4 ab.} 55. Bf7+ Kd4) 55. Rh1 $2 {[%emt 0:00:02]} (55. Kb2) 55... Rg5 {[%emt 0:00:05]} 56. Bf3 {[%emt 0:00:00]} Rf5 {[%emt 0:00:04]} 57. Rh4+ {[%emt 0:00:01]} Kc5 (57... Ke5 58. Rh5 Rxh5 59. Bxh5) 58. Rh3 Rg5 {[%emt 0:00:03]} (58... Rf4 $142 59. Rg3 Rf6 (59... e2 $2 60. Rg5+ Kc4 61. Bxe2+ Nxe2+ 62. Kb2 $19)) 59. Rh1 {[%emt 0:00:03]} Rg7 $2 {[%emt 0:00:03]} (59... Rg3 60. Bb7 Rg6) 60. Rh5+ $2 {[%emt 0:00:03]} (60. Re1) 60... Kc4 {[%emt 0:00:02]} 61. Rh4+ {[%emt 0:00:00]} Kb5 $1 {[%emt 0:00:01]} 62. Rh5+ {[%emt 0:00:03]} (62. Rh1 $142 Kc4 63. Re1) 62... Kb6 {[%emt 0:00:02]} 63. Rh1 {[%emt 0:00:03] Es drohte Rg1+} Rf7 {[%emt 0:00:01]} 64. Bg4 $2 {[%emt 0:00:01]} (64. Bd1) 64... Rf4 {[%emt 0:00:02]} 65. Bh5 {[%emt 0:00:03]} Kc5 $2 {[%emt 0:00:01]} (65... e2 {( -> ...Rf1+)} 66. Bxe2 Nxe2+ 67. Kb2 Nc3) 66. Kb2 {[%emt 0:00:05]} (66. Re1 $142) 66... Rf2 {[%emt 0:00:04]} 67. Re1 $2 {[%emt 0:00:02] [#]} (67. Bg6 $19) 67... Kd4 $2 {[%emt 0:00:01]} (67... e2 $1 {setzt Matt} 68. Bxe2 Nxe2 (68... Rxe2 $2 69. Rh1 $19) 69. Kb1 Kc4 70. Rh1 Nd4 71. Rh4 Kc3 (71... Rxc2 72. Rxd4+ Kxd4 73. Kxc2 $11) 72. Rh3+ Rf3 73. Rh2 Rf1+ 74. Ka2 Rc1 (74... Nxc2 75. Rxc2+ Kxc2 $11) 75. Rh8 Rxc2+ 76. Kb1 b3 (76... Rb2+ {ist ein Selbstmatt.} 77. Kc1 Nb3+ 78. Kd1 Rd2+ 79. Ke1 Nd4 80. Rc8+ Kd3 81. Rg8 b3 82. Rg3+ Kc2 83. Rg8 Kc1 84. Rh8 b2 85. Rb8 Re2+ 86. Kf1 b1=Q 87. Rxb1+ Kxb1 88. Kg1 Kc2 89. Kf1 Kd1 90. Kg1 Ke1 91. Kh1 Rf2 92. Kg1 Nf3+ 93. Kh1 Rh2#) 77. Rb8 Rh2 (77... Rb2+ {wird mattgesetzt.} 78. Kc1 Rh2 79. Rc8+ Kb4 80. Rb8+ Nb5 81. Kb1 Kc4 82. Rc8+ Kd5 83. Rd8+ Ke6 84. Re8+ Kd7 85. Re2 Rxe2 86. Ka1 Ra2+ 87. Kb1 Nc3+ 88. Kc1 Rc2#) 78. Rc8+ Kb4 79. Rg8 Nb5 80. Rb8 Rg2 81. Kc1 b2+ 82. Kb1 Kc4 83. Rxb5 Kxb5 84. Ka2 Kb4 85. Kb1 Kc3 86. Ka2 Rg1 87. Ka3 Ra1#) 68. Kb3 $15 {[%emt 0:00:01]} Nd5 {[%emt 0:00:02]} 69. Bg4 {[%emt 0:00:02]} Rd2 {[%emt 0:00:04]} 70. Be6 {[%emt 0:00:01]} Nf4 {[%emt 0:00:03]} 71. Bg4 {[%emt 0:00:02] [#]} (71. Bc4 $15) 71... Ng2 {[%emt 0:00:02]} (71... Rg2 $1 $17 {[%cal Rg2g4]} 72. Bd1 Rd2) 72. Ra1 {[%emt 0:00:02]} ({Günstiger ist} 72. Rd1 $1 $11) 72... e2 {[%emt 0:00:03]} 73. Bxe2 $1 {[%emt 0:00:02]} Rxe2 {[%emt 0:00:00]} 74. Kxb4 {[%emt 0:00:03]} Rxc2 {[%emt 0:00:02] KRN-KR} 75. Rd1+ {[%emt 0:00:01]} Ke4 {[%emt 0:00:01]} 76. Rh1 {[%emt 0:00:03]} Ne3 {[%emt 0:00:01]} 77. Rh4+ {[%emt 0:00:01]} Kd3 {[%emt 0:00:01]} 78. Rh3 {[%emt 0:00:01]} Rg2 {[%emt 0:00:01]} 79. Kb3 {[%emt 0:00:01]} Rg4 {[%emt 0:00:02]} 80. Rf3 {[%emt 0:00:03]} Kd4 {[%emt 0:00:02]} 81. Rh3 {[%emt 0:00:02]} Rf4 {[%emt 0:00:01]} 82. Rg3 {[%emt 0:00:03]} Rf8 {[%emt 0:00:01]} 83. Rh3 {[%emt 0:00:03]} Rb8+ {[%emt 0:00:01]} 84. Ka4 Nd5 {[%emt 0:00:02]} 85. Rh4+ {[%emt 0:00:02]} Kc5 {[%emt 0:00:01]} 86. Rh5 {[%emt 0:00:02]} Rb4+ {[%emt 0:00:02]} 87. Ka3 {[%emt 0:00:01][%cal Oh5d5]} Rb1 {[%emt 0:00:02]} 88. Ka4 {[%emt 0:00:04]} Rb8 {[%emt 0:00:02]} 89. Rg5 {[%emt 0:00:01]} Rb4+ {[%emt 0:00:03]} 90. Ka3 {[%emt 0:00:01][%cal Og5d5]} Rf4 {[%emt 0:00:01]} 91. Kb3 {[%emt 0:00:01]} Rf3+ {[%emt 0:00:02]} 92. Ka4 {[%emt 0:00:02]} Rd3 {[%emt 0:00:01]} 93. Rh5 {[%emt 0:00:04]} Rf3 {[%emt 0:00:02]} 94. Rg5 {[%emt 0:00:01]} Kc4 {[%emt 0:00:00]} 95. Rg4+ {[%emt 0:00:01]} Nf4 {[%emt 0:00:01]} 96. Ka5 {[%emt 0:00:01]} Rf1 {[%emt 0:00:02]} 97. Kb6 {[%emt 0:00:02]} Kd5 {[%emt 0:00:02]} 98. Rg5+ {[%emt 0:00:02]} Kd6 {[%emt 0:00:00]} 99. Kb5 {[%emt 0:00:02]} Ne6 {[%emt 0:00:02]} 100. Rh5 {[%emt 0:00:02]} Rc1 {[%emt 0:00:03]} 101. Kb4 {[%emt 0:00:01] Die Stellung ist ausgeglichen.} Nf4 {[%emt 0:00:02]} 102. Rg5 $1 {[%emt 0:00:03]} Nd5+ {[%emt 0:00:01]} 103. Kb3 {[%emt 0:00:02]} Rc3+ {[%emt 0:00:02]} 104. Kb2 {[%emt 0:00:02]} Rf3 {[%emt 0:00:01]} 105. Rg8 {[%emt 0:00:02]} Kc5 {[%emt 0:00:01]} 106. Rc8+ $1 {[%emt 0:00:02]} Kd4 {[%emt 0:00:01]} 107. Rd8 {[%emt 0:00:00]} Rh3 {[%emt 0:00:06]} 108. Kc2 {[%emt 0:00:02]} Rh7 {[%emt 0:00:06]} 109. Rd6 {[%emt 0:00:03]} Rc7+ {[%emt 0:00:02]} 110. Kd2 {[%emt 0:00:03]} Ra7 {[%emt 0:00:04]} 111. Ke2 {[%emt 0:00:02]} Rb7 {[%emt 0:00:03]} 112. Rd8 {[%emt 0:00:02]} Rf7 {[%emt 0:00:03]} 113. Rd6 {[%emt 0:00:02]} Rf6 {[%emt 0:00:01]} 114. Rxf6 {[%emt 0:00:02]} Nxf6 {[%emt 0:00:02] Schwarz hatte alle Gewinnchancen.   Gewichteter Fehlerwert: Weiß=0.59/Schwarz=0.42.  Verlustzug:     	Weiß=2     	---        Gewinn verpasst:   	---       	Schwarz=2     Fehler:       	Weiß=5     	Schwarz=2     Ungenau:       	---       	Schwarz=3     OK:         	Weiß=29    	Schwarz=35    Bester:       	Weiß=6     	Schwarz=3     Stark:        	Weiß=3     	Schwarz=2} 1/2-1/2

[Event "American Cup Blitz 2024"]
[Site "Saint Louis"]
[Date "2024.03.21"]
[Round "2.10"]
[White "Ladan, Nicholas"]
[Black "Rosen, Eric"]
[Result "1-0"]
[ECO "E04"]
[WhiteElo "2183"]
[BlackElo "2361"]
[Annotator "TA"]
[PlyCount "103"]
[EventDate "2024.03.21"]
[EventType "swiss"]
[EventCountry "USA"]
[SourceTitle "playchess.com"]
[Source "ChessBase"]
[SourceQuality "1"]
[TimeControl "180+2"]

{[%evp 10,103,29,14,44,22,12,-8,0,-13,0,0,26,21,7,0,52,25,19,-7,-4,-20,-11,-11,25,5,20,22,319,327,385,382,362,285,492,482,475,461,543,540,630,470,526,522,522,541,568,477,469,420,420,413,505,433,605,595,596,595,569,568,563,520,604,559,652,643,804,777,812,486,485,484,615,610,1213,1176,1214,1058,1285,1266,1287,1259,1283,1267,1490,1316,3912,1461,29981,29981,29988,29987,29988,29987,29987,29988]} 1. d4 {[%emt 0:00:02]} d5 {[%emt 0:00:00]} 2. c4 {[%emt 0:00:01]} e6 {[%emt 0:00:01]} 3. Nf3 {[%emt 0:00:02]} Nf6 {[%emt 0:00:01]} 4. g3 {[%emt 0:00:01]} dxc4 {[%emt 0:00:02]} 5. Bg2 {[%emt 0:00:01]} Bb4+ {[%emt 0:00:01]} 6. Bd2 {[%emt 0:00:01]} c5 {[%emt 0:00:00]} 7. O-O {[%emt 0:00:12]} O-O {[%emt 0:00:02]} 8. dxc5 {[%emt 0:00:42]} Bxc5 {[%emt 0:00:01] The position is equal.} 9. Ne5 {[%emt 0:00:16]} Qc7 {[%emt 0:00:28]} 10. Nxc4 {[%emt 0:00:26]} Rd8 {[%emt 0:00:42]} (10... Bxf2+ $5 11. Rxf2 Qxc4 $11) 11. Qc1 {[%emt 0:00:25]} Nc6 {[%emt 0:00:17] Prevents Ba5} 12. Nc3 {[%emt 0:00:03]} a6 {[%emt 0:00:11]} (12... h6 $11) 13. Rd1 {[%emt 0:00:17]} h6 {[%emt 0:00:51]} 14. Bf4 {[%emt 0:00:10]} Rxd1+ {[%emt 0:00:01]} 15. Qxd1 {[%emt 0:00:02]} e5 {[%emt 0:00:06]} 16. Be3 {[%emt 0:00:06]} Nd4 {[%emt 0:00:12]} 17. Rc1 {[%emt 0:00:13] Hoping for Na4.} Be6 {[%emt 0:00:01]} 18. Na4 $36 {[%emt 0:00:17][%mdl 2048] White has good play.} Ba7 $2 {[%emt 0:00:12][%mdl 8192] [#] Black cannot hold the game after this.} (18... Ng4 $1 $11) 19. Ncb6 $1 $18 {[%emt 0:00:05][%mdl 512]} Qd8 {[%emt 0:00:19]} (19... Bxb6 20. Rxc7) 20. Nxa8 {[%emt 0:00:02]} Qxa8 {[%emt 0:00:01]} 21. Nc5 {[%emt 0:00:04]} Bf5 $2 {[%emt 0:00:10]} (21... Bxc5 22. Rxc5 Nc6 23. Bxc6 bxc6 24. Rxe5 Ng4) 22. Bxd4 {[%emt 0:00:10]} ({Don't do} 22. Bxb7 Qe8 23. Bxa6 (23. Nxa6 Qb5 $18) 23... Bh3 24. Bxd4 exd4) (22. Nxb7 Qf8 23. Bxd4 Bxd4 $18) 22... exd4 {[%emt 0:00:01]} 23. Qxd4 {[%emt 0:00:04]} Qf8 {[%emt 0:00:00]} 24. Qe5 {[%emt 0:00:02]} Bg6 {[%emt 0:00:06]} 25. Nd3 {[%emt 0:00:01]} Bb8 {[%emt 0:00:01]} 26. Qc5 {[%emt 0:00:02] Strongly threatening Qxf8+.} Bd6 {[%emt 0:00:02]} 27. Qc8 {[%emt 0:00:01]} b5 {[%emt 0:00:03]} 28. Qxf8+ {[%emt 0:00:02]} Kxf8 {[%emt 0:00:01]} 29. Rc8+ {[%emt 0:00:01]} Ke7 {[%emt 0:00:01][%cal Bf8e7,Be7d7,Bd7c7][%mdl 32]} 30. Ra8 {[%emt 0:00:01]} Kd7 {[%emt 0:00:04]} 31. Rxa6 {[%emt 0:00:01]} Kc7 {[%emt 0:00:01]} 32. Rc6+ {[%emt 0:00:05]} Kd7 {[%emt 0:00:01]} 33. Nc5+ {[%emt 0:00:02]} Ke7 34. Nb3 {[%emt 0:00:05]} Nd7 {[%emt 0:00:03]} 35. Ra6 {[%emt 0:00:01]} Bf5 {[%emt 0:00:03]} 36. Ra7 {[%emt 0:00:02]} Kd8 {[%emt 0:00:05]} 37. Nd4 {[%emt 0:00:02][%csl LRb5,LRf5]} Bb1 {[%emt 0:00:02]} 38. Bh3 {[%emt 0:00:02]} Ne5 {[%emt 0:00:02] Prevents Nc6+} 39. f4 {[%emt 0:00:02]} Bc5 {[%emt 0:00:00]} 40. Ra8+ {[%emt 0:00:02]} Kc7 {[%emt 0:00:02]} 41. e3 {[%emt 0:00:01]} Nc4 {[%emt 0:00:01]} 42. Rc8+ {[%emt 0:00:02]} Kd6 {[%emt 0:00:03]} 43. Rc6+ {[%emt 0:00:02]} Kd5 {[%emt 0:00:01]} 44. Bg2+ {[%emt 0:00:03]} Be4 {[%emt 0:00:01]} 45. Bxe4+ {[%emt 0:00:02]} Kxe4 {[%emt 0:00:01]} 46. Rxc5 {[%emt 0:00:01]} Nxe3 {[%emt 0:00:01]} 47. Nc2 {[%emt 0:00:03]} Ng4 {[%emt 0:00:08]} 48. Rxb5 {[%emt 0:00:03]} f5 {[%emt 0:00:02]} 49. a4 {[%emt 0:00:03] White mates.} Kf3 {[%emt 0:00:01]} 50. Ne1+ {[%emt 0:00:02]} Ke2 {[%emt 0:00:02] [#]} 51. Re5+ $1 {[%emt 0:00:02]} Nxe5 {[%emt 0:00:04]} (51... Kd1 52. Re7) 52. fxe5 {[%emt 0:00:01] Weighted Error Value: White=0.24 (precise) /Black=0.60.  Loses game:     	---       	Black=1      Mistake:       	---       	Black=2      Inaccurate:     	White=2     	Black=4      OK:         	White=10    	Black=5      Best:        	White=1     	Black=2} 1-0

[Event "American Cup Blitz 2024"]
[Site "Saint Louis"]
[Date "2024.03.21"]
[Round "3.1"]
[White "Aronian, Levon"]
[Black "Durarbayli, Vasif"]
[Result "0-1"]
[ECO "C13"]
[WhiteElo "2722"]
[BlackElo "2627"]
[Annotator "TA"]
[PlyCount "90"]
[EventDate "2024.03.21"]
[EventType "swiss"]
[EventCountry "USA"]
[SourceTitle "playchess.com"]
[Source "ChessBase"]
[SourceQuality "1"]
[TimeControl "180+2"]

{[%evp 16,90,27,33,44,45,39,48,67,63,106,103,82,15,124,109,113,125,114,63,114,108,105,100,89,79,70,72,153,152,211,56,85,35,37,0,0,0,0,0,0,0,0,0,0,0,0,0,0,0,0,0,0,-114,-114,-189,-177,-165,-145,-139,-145,-236,0,-145,-145,-29957,-29966,-29964,-29965,-29965,-29963,-29959,-29960,-29982,-6219,-1934,0]} 1. e4 {[%emt 0:00:02]} e6 {[%emt 0:00:00]} 2. d4 {[%emt 0:00:01]} d5 {[%emt 0:00:01]} 3. Nc3 {[%emt 0:00:01]} Nf6 {[%emt 0:00:00]} 4. Bg5 {[%emt 0:00:02]} dxe4 {[%emt 0:00:10]} 5. Nxe4 {[%emt 0:00:01]} Nbd7 {[%emt 0:00:00]} 6. Nf3 {[%emt 0:00:04]} h6 {[%emt 0:00:03]} 7. Bxf6 {[%emt 0:00:01]} Nxf6 {[%emt 0:00:01] C13: French: Classical System: 4 Bg5 Be7, Alekhine-Chatard Attack.} 8. Bd3 {[%emt 0:00:01]} Bd6 {[%emt 0:00:25]} 9. Qe2 {[%emt 0:00:15]} Nd5 {[%emt 0:00:10]} 10. g3 {[%emt 0:00:01]} O-O $146 {[%emt 0:00:20]} ({Predecessor:} 10... Qe7 11. c3 Bd7 12. O-O-O Nf6 13. Kb1 Bc6 14. Rhe1 Nxe4 15. Bxe4 Bxe4+ 16. Qxe4 c6 {0-1 Thar,S (2138)-Aveskulov,V (2529) Titled Tuesday intern op 2nd May blitz 2015 (1)}) 11. a3 {[%emt 0:00:01]} f5 {[%emt 0:00:27]} 12. Ned2 {[%emt 0:00:15]} c5 {[%emt 0:00:03]} 13. dxc5 {[%emt 0:00:11]} Bxc5 {[%emt 0:00:02]} 14. O-O-O {[%emt 0:00:02]} (14. Nb3 $16 Bd6 15. O-O-O) 14... Qf6 {[%emt 0:00:25] [#]} (14... Qb6 $11) 15. Nb3 $1 $16 {[%emt 0:00:10]} Bb6 {[%emt 0:00:16]} 16. Rhe1 {[%emt 0:00:03]} Bd7 {[%emt 0:00:08]} 17. c4 {[%emt 0:00:13]} (17. Bc4 $16) 17... Rac8 {[%emt 0:00:17]} (17... Ba4 $1 $14) 18. Kb1 {[%emt 0:00:01]} Ne7 {[%emt 0:00:11]} 19. Bc2 {[%emt 0:00:18]} Rfd8 {[%emt 0:00:03]} 20. Ne5 {[%emt 0:00:08]} Ba4 {[%emt 0:00:05]} 21. f4 {[%emt 0:00:16]} Rxd1+ {[%emt 0:00:04]} ({Black should play} 21... Be8) 22. Rxd1 $16 {[%emt 0:00:01]} Nc6 {[%emt 0:00:00]} (22... Ng6 $16) 23. Nd7 $2 {[%emt 0:00:14]} (23. c5 $18 Bc7 24. Qc4) 23... Qe7 $14 {[%emt 0:00:01] [#]} 24. Nxb6 {[%emt 0:00:02]} ({Better is} 24. c5 $1 $16 {[%cal Rc5b6]} Bc7 25. Qc4) 24... axb6 $14 {[%emt 0:00:01]} 25. Qe3 {[%emt 0:00:41]} Na5 $1 {[%emt 0:00:16]} 26. Nxa5 {[%emt 0:00:30]} Bxc2+ {[%emt 0:00:00]} 27. Kxc2 {[%emt 0:00:01]} bxa5 {[%emt 0:00:01]} 28. Qc3 {[%emt 0:00:13]} b5 {[%emt 0:00:03]} 29. Qxa5 {[%emt 0:00:01]} Rxc4+ {[%emt 0:00:02]} 30. Kb1 {[%emt 0:00:00]} Qb7 {[%emt 0:00:04]} 31. Qd8+ {[%emt 0:00:07]} Kh7 {[%emt 0:00:01]} 32. Qd3 {[%emt 0:00:01]} Re4 {[%emt 0:00:04]} 33. Rd2 {[%emt 0:00:05]} b4 {[%emt 0:00:01]} 34. axb4 {[%emt 0:00:01]} (34. Qb3 $11 {keeps the balance.}) 34... Rxb4 $17 {[%emt 0:00:04]} 35. Re2 {[%emt 0:00:02]} (35. Qe2 $17 {was called for.}) 35... Qh1+ $19 {[%emt 0:00:01]} 36. Kc2 {[%emt 0:00:04]} Qc6+ {[%emt 0:00:01]} 37. Kb1 {[%emt 0:00:01]} Rc4 {[%emt 0:00:03]} 38. Qe3 {[%emt 0:00:02]} (38. Re1 $17) 38... Re4 $2 {[%emt 0:00:08]} (38... Qh1+ $19 39. Re1 Qxh2) 39. Qd3 {[%emt 0:00:01]} (39. Qf3 $1 $11) 39... Ra4 $17 {[%emt 0:00:03]} 40. b3 $2 {[%emt 0:00:02][%mdl 8192]} (40. Re1 $17) 40... Qh1+ {[%emt 0:00:05]} 41. Kc2 {[%emt 0:00:02]} Ra2+ {[%emt 0:00:06]} 42. Kc3 {[%emt 0:00:01]} Qc6+ {[%emt 0:00:03]} 43. Kd4 {[%emt 0:00:03]} Qb6+ {[%emt 0:00:06]} 44. Kc4 {[%emt 0:00:03]} Qa6+ {[%emt 0:00:01]} (44... Rxe2 $142 45. g4 Re4+ (45... Rxh2 $2 46. gxf5 Qc7+ 47. Kb5 $19) 46. Kc3 Re3 (46... Rxf4 47. g5 Qa5+ 48. Kb2 Rf2+ 49. Qc2 Qe5+ 50. Kb1 Rf1+ 51. Qc1 Rxc1+ 52. Kxc1 Qe2 53. h3 f4 54. gxh6 Kxh6 55. Kb1 f3 56. h4 f2 57. Kc1 f1=Q#) 47. gxf5 Rxd3+ 48. Kxd3 Qxb3+ (48... exf5 {gets mated.} 49. h4 Qxb3+ 50. Kd4 Kg6 51. Kc5 Kf7 52. Kd6 Qb5 53. Kc7 Ke6 54. h5 Ke7 55. Kc8 Kd6 56. Kd8 Qd7#) 49. Ke2 exf5 50. Kd2 Kg6 51. Ke2 Kh5 52. h3 Qxh3 53. Kd1 Qc3 54. Ke2 Kg4 55. Kd1 Kxf4 56. Ke2 Qc2+ 57. Kf1 Kf3 58. Kg1 Qg2#) 45. Kc3 {[%emt 0:00:05]} Qc6+ $2 (45... Qa5+ $19 46. Kd4 Qb6+ 47. Kc3 Qc5+ 48. Qc4 Qxc4+ (48... Rxe2 $2 {is the wrong capture.} 49. Qxc5 Rxh2 50. Qc6 $18) 49. Kxc4 Rxe2) 0-1